Workbook

Sheet leesme
B1: Werkblad omrekenen
B2: In dit werkblad kun je vanuit een gegeven waarde voor een meeteenheid de andere waarden berekenen.
B3: In deze gekleurde cellen kun je een getal invoeren.
B4: In deze gekleurde cellen wordt een waarde berekend.
B5: De gebruikte formules staan in de cel rechts van de berekeningscel. Een toelichting op deze formules vind je in het artikel "SG-BRIX_PLATO"op de website.
B7: Werkblad functies
B8: Voor gebruik in een brouwprogramma in Excel zijn voor een aantal omrekeningen eigen gedefinieerde formules gemaakt. In dit werkblad wordt het gebruik van deze formules gedemonstreerd. Deze functies zijn:
B9: Plato2Brix(plato)
B10: Zet de meegegeven waarde voor plato om naar Brix via factor 1,04.
B11: Brix2Plato(brix)
B12: Zet de meegegeven waarde voor brix om naar Plato via factor 1,04.
B13: SG2Plato(sg; methode)
B14: Zet de meegegeven waarde voor sg om naar Plato. Optioneel kan de berekeingsmethode, "simpel" (default) of "clerck" worden meegegeven.
B15: Plato2SG(plato;methode)
B16: Zet de meegegeven waarde voor plato om naar SG. Optioneel kan de berekeingsmethode, "simpel" (default) of "clerck" worden meegegeven.
B18: Algemeen
B19: De werkbladen zijn beveiligd zonder wachtwoord.

Sheet omrekenen
B1: Dichtheid (gr/lit) | D1: SG | F1: SG_punten
A2: Invoeren: | B2: 1050 | D2: 1.05 | F2: 50
A4: Dichtheid (gr/lit) | B4: =B2 -> 1050 | D4: =D2*1000 -> 1050 | E4: =_xlfn.FORMULATEXT(D4) -> =D2*1000 | F4: =F2+1000 -> 1050 | G4: =_xlfn.FORMULATEXT(F4) -> =F2+1000
A5: SG | B5: =B2/1000 -> 1.05 | C5: =_xlfn.FORMULATEXT(B5) -> =B2/1000 | D5: =D2 -> 1.05 | F5: =(F2+1000)/1000 -> 1.05 | G5: =_xlfn.FORMULATEXT(F5) -> =(F2+1000)/1000
A6: SG_punten | B6: =B2-1000 -> 50 | C6: =B2-1000 | D6: =1000*(D2-1) -> 50 | E6: =_xlfn.FORMULATEXT(D6) -> =1000*(D2-1) | F6: =F2 -> 50
A7: Plato (eenvoudig) | B7: =250*(B5-1) -> 12.5 | C7: =250*(B5-1) | D7: =250*(D2-1) -> 12.5 | E7: =_xlfn.FORMULATEXT(D7) -> =250*(D2-1) | F7: =F2/4 -> 12.5 | G7: =_xlfn.FORMULATEXT(F7) -> =F2/4
A8: Brix | B8: =PlatoBrixFactor*B7 -> 13 | C8: =PlatoBrixFactor*B7 | D8: =PlatoBrixFactor*D7 -> 13 | E8: =_xlfn.FORMULATEXT(D8) -> =PlatoBrixFactor*D7 | F8: =PlatoBrixFactor*F7 -> 13 | G8: =_xlfn.FORMULATEXT(F8) -> =PlatoBrixFactor*F7
A10: Plato (Clerck) | B10: =259-259/B5 -> 12.33333333 | C10: =259-259/B5 | D10: =259-259/D2 -> 12.33333333 | E10: =_xlfn.FORMULATEXT(D10) -> =259-259/D2 | F10: =259-259/F5 -> 12.33333333 | G10: =_xlfn.FORMULATEXT(F10) -> =259-259/F5
A11: Brix | B11: =PlatoBrixFactor*B10 -> 12.82666667 | C11: =PlatoBrixFactor*B10 | D11: =PlatoBrixFactor*D10 -> 12.82666667 | E11: =PlatoBrixFactor*D10 | F11: =PlatoBrixFactor*F10 -> 12.82666667 | G11: =PlatoBrixFactor*F10
A14: Plato2Brix factor
A15: 1.04 | B15: Plato-SG via eenvoudige benaderingsformule | F15: Plato-SG via formule Clerck
B16: Plato | D16: Brix | F16: Plato | H16: Brix
A17: Invoeren: | B17: 12.5 | D17: 13 | F17: 12.5 | H17: 13
A19: Dichtheid (gr/lit) | B19: =B20*1000 -> 1050 | C19: =_xlfn.FORMULATEXT(B19) -> =B20*1000 | D19: =D20*1000 -> 1050 | E19: =_xlfn.FORMULATEXT(D19) -> =D20*1000 | F19: =F20*1000 -> 1050.709939 | G19: =_xlfn.FORMULATEXT(F19) -> =F20*1000 | H19: =H20*1000 -> 1050.709939 | I19: =_xlfn.FORMULATEXT(H19) -> =H20*1000
A20: SG | B20: =1+B22/250 -> 1.05 | C20: =_xlfn.FORMULATEXT(B20) -> =1+B22/250 | D20: =1+D22/250 -> 1.05 | E20: =_xlfn.FORMULATEXT(D20) -> =1+D22/250 | F20: =259/(259-F22) -> 1.050709939 | G20: =_xlfn.FORMULATEXT(F20) -> =259/(259-F22) | H20: =259/(259-H22) -> 1.050709939 | I20: =259/(259-H22)
A21: SG_punten | B21: =4*B22 -> 50 | C21: =_xlfn.FORMULATEXT(B21) -> =4*B22 | D21: =4*D22 -> 50 | E21: =4*D22 | F21: =4*F22 -> 50 | G21: =_xlfn.FORMULATEXT(F21) -> =4*F22 | H21: =4*H22 -> 50 | I21: =4*H22
A22: Plato | B22: =B17 -> 12.5 | D22: =D17/PlatoBrixFactor -> 12.5 | E22: =_xlfn.FORMULATEXT(D22) -> =D17/PlatoBrixFactor | F22: =F17 -> 12.5 | H22: =H17/PlatoBrixFactor -> 12.5 | I22: =_xlfn.FORMULATEXT(H22) -> =H17/PlatoBrixFactor
A23: Brix | B23: =PlatoBrixFactor*B17 -> 13 | C23: =_xlfn.FORMULATEXT(B23) -> =PlatoBrixFactor*B17 | D23: =D17 -> 13 | F23: =PlatoBrixFactor*F17 -> 13 | G23: =_xlfn.FORMULATEXT(F23) -> =PlatoBrixFactor*F17 | H23: =H17 -> 13

Sheet functies
B1: SG
A2: Invoeren: | B2: 1.05
A3: Plato (eenvoudig) | B3: =SG2Plato(B2) -> 12.49998856 | C3: =_xlfn.FORMULATEXT(B3) -> =SG2Plato(B2)
A4: Plato (eenvoudig) | B4: =SG2Plato(B2,"simpel") -> 12.49998856 | C4: =_xlfn.FORMULATEXT(B4) -> =SG2Plato(B2;"simpel")
A5: Plato (clerck) | B5: =SG2Plato(B2,"clerck") -> 12.33332253 | C5: =_xlfn.FORMULATEXT(B5) -> =SG2Plato(B2;"clerck")
A6: Brix (Plato eenvoudig) | B6: =Plato2Brix(B3) -> 12.99998856 | C6: =_xlfn.FORMULATEXT(B6) -> =Plato2Brix(B3)
B8: Plato
A9: Invoeren: | B9: 12.5
A10: SG (eenvoudig) | B10: =Plato2SG(B9) -> 1.049999952 | C10: =_xlfn.FORMULATEXT(B10) -> =Plato2SG(B9)
A11: SG (eenvoudig) | B11: =Plato2SG(B9,"simpel") -> 1.049999952 | C11: =_xlfn.FORMULATEXT(B11) -> =Plato2SG(B9;"simpel")
A12: SG (clerck) | B12: =Plato2SG(B9,"clerck") -> 1.050709963 | C12: =_xlfn.FORMULATEXT(B12) -> =Plato2SG(B9;"clerck")
A13: Brix | B13: =Plato2Brix(B9) -> 13 | C13: =_xlfn.FORMULATEXT(B13) -> =Plato2Brix(B9)
B15: Brix
A16: Invoeren: | B16: 13
A17: Plato | B17: =Brix2Plato(B16) -> 12.5 | C17: =_xlfn.FORMULATEXT(B17) -> =Brix2Plato(B16)
A18: SG (eenvoudig) | B18: =Plato2SG(B17) -> 1.049999952 | C18: =_xlfn.FORMULATEXT(B18) -> =Plato2SG(B17)
A19: SG (eenvoudig) | B19: =Plato2SG(B17,"simpel") -> 1.049999952 | C19: =_xlfn.FORMULATEXT(B19) -> =Plato2SG(B17;"simpel")
A20: SG (clerck) | B20: =Plato2SG(B17,"clerck") -> 1.050709963 | C20: =_xlfn.FORMULATEXT(B20) -> =Plato2SG(B17;"clerck")
A22: Voorbeeld geneste functies:
A23: SG (eenvoudig) | B23: =Plato2SG(Brix2Plato(B16)) -> 1.049999952 | C23: =_xlfn.FORMULATEXT(B23) -> =Plato2SG(Brix2Plato(B16))
